[Event "Titled Tuesday Blitz March 28 Early 2023"]
[White "Tarasova, Viktoriya"]
[Black "Torres Dominguez, David"]
[WhiteFideId "4175840"]
[BlackFideId "2220857"]
[WhiteElo "2182"]
[BlackElo "1999"]
[Result "1-0"]
[Round "08"]
[TimeControl "180+2"]
[Date "2023.03.28"]
[WhiteClock "0:01:07"]
[BlackClock "0:00:01"]

1. d4 {[%clk 0:02:59]}  e5 {[%clk 0:03:00]} 2. dxe5 {[%clk 0:02:59]}  d6 {[%clk 0:03:00]} 3. exd6 {[%clk 0:02:58]}  Bxd6 {[%clk 0:03:01]} 4. Nf3 {[%clk 0:02:58]}  Bg4 {[%clk 0:03:01]} 5. Nc3 {[%clk 0:02:54]}  Nc6 {[%clk 0:03:01]} 6. h3 {[%clk 0:02:55]}  Bh5 {[%clk 0:02:59]} 7. e4 {[%clk 0:02:48]}  Qe7 {[%clk 0:02:59]} 8. Be2 {[%clk 0:02:48]}  O-O-O {[%clk 0:02:58]} 9. Bd2 {[%clk 0:02:33]}  Nf6 {[%clk 0:02:56]} 10. Bd3 {[%clk 0:02:19]}  Ne5 {[%clk 0:02:42]} 11. g4 {[%clk 0:02:08]}  Nfxg4 {[%clk 0:02:04]} 12. hxg4 {[%clk 0:02:07]}  Bxg4 {[%clk 0:02:04]} 13. Be2 {[%clk 0:02:07]}  h5 {[%clk 0:01:24]} 14. Nxe5 {[%clk 0:02:04]}  Bxe2 {[%clk 0:00:53]} 15. Qxe2 {[%clk 0:02:02]}  Bxe5 {[%clk 0:00:48]} 16. O-O-O {[%clk 0:02:01]}  g5 {[%clk 0:00:38]} 17. Nd5 {[%clk 0:01:59]}  Rxd5 {[%clk 0:00:33]} 18. Rxh5 {[%clk 0:01:34]}  Rhd8 {[%clk 0:00:20]} 19. Qg4+ {[%clk 0:01:26]}  Kb8 {[%clk 0:00:19]} 20. exd5 {[%clk 0:01:24]}  a6 {[%clk 0:00:08]} 21. Rxg5 {[%clk 0:01:20]}  f6 {[%clk 0:00:08]} 22. Rg7 {[%clk 0:01:20]}  Qc5 {[%clk 0:00:07]} 23. Be3 {[%clk 0:01:18]}  Qb5 {[%clk 0:00:07]} 24. c3 {[%clk 0:01:12]}  Qa5 {[%clk 0:00:05]} 25. Rg8 {[%clk 0:01:09]}  Rc8 {[%clk 0:00:01]} 26. Qxc8# {[%clk 0:01:07]} 1-0


[Site "https://www.chess.com"]

[Event "Titled Tuesday Blitz March 28 Early 2023"]
[White "Zeynalli, Rashad"]
[Black "Larina, Maria"]
[WhiteFideId "13403320"]
[BlackFideId "24113182"]
[WhiteElo "2125"]
[BlackElo "1848"]
[Result "1-0"]
[Round "08"]
[TimeControl "180+2"]
[Date "2023.03.28"]
[WhiteClock "0:01:27"]
[BlackClock "0:01:08"]

1. d4 {[%clk 0:02:01]}  f5 {[%clk 0:02:51]} 2. e4 {[%clk 0:02:00]}  fxe4 {[%clk 0:02:51]} 3. Nc3 {[%clk 0:02:00]}  Nf6 {[%clk 0:02:52]} 4. Bg5 {[%clk 0:02:00]}  Nc6 {[%clk 0:02:52]} 5. d5 {[%clk 0:02:00]}  Ne5 {[%clk 0:02:52]} 6. Qd4 {[%clk 0:01:58]}  Nf7 {[%clk 0:02:52]} 7. h4 {[%clk 0:01:58]}  c6 {[%clk 0:02:49]} 8. O-O-O {[%clk 0:01:54]}  Qb6 {[%clk 0:02:48]} 9. Bxf6 {[%clk 0:01:50]}  gxf6 {[%clk 0:02:40]} 10. Qxe4 {[%clk 0:01:50]}  Bh6+ {[%clk 0:02:40]} 11. Kb1 {[%clk 0:01:49]}  Nd6 {[%clk 0:02:29]} 12. Qf3 {[%clk 0:01:44]}  O-O {[%clk 0:02:06]} 13. Bd3 {[%clk 0:01:35]}  Kh8 {[%clk 0:01:59]} 14. Qh5 {[%clk 0:01:33]}  Nf7 {[%clk 0:01:55]} 15. g4 {[%clk 0:01:30]}  d6 {[%clk 0:01:48]} 16. g5 {[%clk 0:01:28]}  Bg7 {[%clk 0:01:08]} 17. Qxh7# {[%clk 0:01:27]} 1-0


[Site "https://www.chess.com"]

[Event "Titled Tuesday Blitz March 28 Early 2023"]
[White "Avazkhonov, Alikhon"]
[Black "Adithya A Chullikkad"]
[WhiteFideId "14208504"]
[BlackFideId "45078734"]
[WhiteElo "1739"]
[BlackElo "1984"]
[Result "0-1"]
[Round "08"]
[TimeControl "180+2"]
[Date "2023.03.28"]
[WhiteClock "0:00:59"]
[BlackClock "0:00:20"]

1. d4 {[%clk 0:03:00]}  d5 {[%clk 0:02:52]} 2. c4 {[%clk 0:03:00]}  e6 {[%clk 0:02:51]} 3. Nc3 {[%clk 0:03:01]}  Nf6 {[%clk 0:02:52]} 4. cxd5 {[%clk 0:03:00]}  exd5 {[%clk 0:02:51]} 5. Bg5 {[%clk 0:03:01]}  c6 {[%clk 0:02:51]} 6. e3 {[%clk 0:03:01]}  Bf5 {[%clk 0:02:51]} 7. Qf3 {[%clk 0:03:01]}  Bg6 {[%clk 0:02:48]} 8. Bxf6 {[%clk 0:03:02]}  Qxf6 {[%clk 0:02:47]} 9. Qxf6 {[%clk 0:03:02]}  gxf6 {[%clk 0:02:48]} 10. h4 {[%clk 0:03:02]}  Nd7 {[%clk 0:02:46]} 11. h5 {[%clk 0:02:51]}  Bf5 {[%clk 0:02:45]} 12. f3 {[%clk 0:02:51]}  Bb4 {[%clk 0:02:43]} 13. g4 {[%clk 0:02:50]}  Be6 {[%clk 0:02:43]} 14. Bd3 {[%clk 0:02:50]}  O-O-O {[%clk 0:02:42]} 15. Nh3 {[%clk 0:02:49]}  c5 {[%clk 0:02:41]} 16. Kd2 {[%clk 0:02:47]}  cxd4 {[%clk 0:02:39]} 17. exd4 {[%clk 0:02:48]}  Nb6 {[%clk 0:02:39]} 18. Nf4 {[%clk 0:02:47]}  Nc4+ {[%clk 0:02:38]} 19. Kc2 {[%clk 0:02:36]}  Ne3+ {[%clk 0:02:16]} 20. Kb3 {[%clk 0:02:34]}  Bd6 {[%clk 0:02:12]} 21. Nxe6 {[%clk 0:02:22]}  fxe6 {[%clk 0:02:12]} 22. Nb5 {[%clk 0:02:20]}  Kb8 {[%clk 0:02:06]} 23. Rhe1 {[%clk 0:02:05]}  Bf4 {[%clk 0:02:00]} 24. a4 {[%clk 0:02:03]}  e5 {[%clk 0:01:39]} 25. Nc3 {[%clk 0:02:03]}  exd4 {[%clk 0:01:28]} 26. Ne2 {[%clk 0:02:03]}  Be5 {[%clk 0:01:26]} 27. f4 {[%clk 0:02:01]}  Bc7 {[%clk 0:01:22]} 28. g5 {[%clk 0:02:01]}  fxg5 {[%clk 0:01:16]} 29. fxg5 {[%clk 0:02:02]}  Bb6 {[%clk 0:01:05]} 30. Rg1 {[%clk 0:01:46]}  Nc4 {[%clk 0:00:57]} 31. Nf4 {[%clk 0:01:16]}  Nd2+ {[%clk 0:00:48]} 32. Kc2 {[%clk 0:01:14]}  Nf3 {[%clk 0:00:48]} 33. Rg3 {[%clk 0:01:13]}  Ne5 {[%clk 0:00:35]} 34. g6 {[%clk 0:01:10]}  hxg6 {[%clk 0:00:35]} 35. hxg6 {[%clk 0:01:11]}  Rhg8 {[%clk 0:00:35]} 36. g7 {[%clk 0:01:08]}  Nxd3 {[%clk 0:00:31]} 37. Kxd3 {[%clk 0:01:09]}  Bc7 {[%clk 0:00:31]} 38. Rf1 {[%clk 0:01:03]}  Rd7 {[%clk 0:00:31]} 39. Ne6 {[%clk 0:00:59]}  Bxg3 {[%clk 0:00:30]} 40. Rf8+ {[%clk 0:00:59]}  Rd8 {[%clk 0:00:21]} 41. Re8 {[%clk 0:00:59]}  Rdxe8 {[%clk 0:00:20]} 0-1


[Site "https://www.chess.com"]

[Event "Titled Tuesday Blitz March 28 Early 2023"]
[White "Napoli, Nicolo"]
[Black "Silvestre, Christian"]
[WhiteFideId "813702"]
[BlackFideId "30956269"]
[WhiteElo "2308"]
[BlackElo "2368"]
[Result "0-1"]
[Round "08"]
[TimeControl "180+2"]
[Date "2023.03.28"]
[WhiteClock "0:00:04"]
[BlackClock "0:00:25"]

1. e4 {[%clk 0:03:00]}  e6 {[%clk 0:02:58]} 2. d4 {[%clk 0:02:59]}  d5 {[%clk 0:02:55]} 3. Bd3 {[%clk 0:02:59]}  Nf6 {[%clk 0:02:54]} 4. e5 {[%clk 0:02:58]}  Nfd7 {[%clk 0:02:53]} 5. c3 {[%clk 0:02:59]}  b6 {[%clk 0:02:53]} 6. Nf3 {[%clk 0:02:59]}  Ba6 {[%clk 0:02:53]} 7. O-O {[%clk 0:02:58]}  Bxd3 {[%clk 0:02:53]} 8. Qxd3 {[%clk 0:02:59]}  Be7 {[%clk 0:02:51]} 9. Nbd2 {[%clk 0:02:56]}  Qc8 {[%clk 0:02:50]} 10. Re1 {[%clk 0:02:52]}  c5 {[%clk 0:02:50]} 11. Nf1 {[%clk 0:02:52]}  Qa6 {[%clk 0:02:49]} 12. Qc2 {[%clk 0:02:43]}  cxd4 {[%clk 0:02:48]} 13. cxd4 {[%clk 0:02:42]}  O-O {[%clk 0:02:48]} 14. Bg5 {[%clk 0:02:37]}  Rc8 {[%clk 0:02:46]} 15. Qb1 {[%clk 0:02:34]}  Bb4 {[%clk 0:02:43]} 16. N1d2 {[%clk 0:02:27]}  Nc6 {[%clk 0:02:42]} 17. Be3 {[%clk 0:02:26]}  Na5 {[%clk 0:02:41]} 18. a3 {[%clk 0:02:24]}  Bxd2 {[%clk 0:02:39]} 19. Nxd2 {[%clk 0:02:25]}  Nc4 {[%clk 0:02:36]} 20. Nxc4 {[%clk 0:02:23]}  Rxc4 {[%clk 0:02:36]} 21. b3 {[%clk 0:02:18]}  Rc3 {[%clk 0:02:36]} 22. Qb2 {[%clk 0:02:17]}  Rac8 {[%clk 0:02:34]} 23. Rec1 {[%clk 0:02:17]}  Qd3 {[%clk 0:02:32]} 24. Rd1 {[%clk 0:02:07]}  Qb5 {[%clk 0:02:28]} 25. Rac1 {[%clk 0:01:47]}  Rxc1 {[%clk 0:02:24]} 26. Rxc1 {[%clk 0:01:44]}  Rxc1+ {[%clk 0:02:18]} 27. Bxc1 {[%clk 0:01:42]}  Qd3 {[%clk 0:02:14]} 28. h3 {[%clk 0:01:37]}  h5 {[%clk 0:02:13]} 29. Be3 {[%clk 0:01:34]}  Nf8 {[%clk 0:02:11]} 30. b4 {[%clk 0:01:25]}  Ng6 {[%clk 0:02:09]} 31. a4 {[%clk 0:01:23]}  Qd1+ {[%clk 0:02:06]} 32. Kh2 {[%clk 0:01:23]}  Qxa4 {[%clk 0:02:06]} 33. Qc3 {[%clk 0:01:24]}  Qd7 {[%clk 0:02:05]} 34. Bg5 {[%clk 0:01:15]}  h4 {[%clk 0:01:56]} 35. Qf3 {[%clk 0:00:59]}  a5 {[%clk 0:01:55]} 36. Bd2 {[%clk 0:00:41]}  a4 {[%clk 0:01:53]} 37. Qa3 {[%clk 0:00:30]}  Qc6 {[%clk 0:01:49]} 38. Be3 {[%clk 0:00:14]}  b5 {[%clk 0:01:47]} 39. Bd2 {[%clk 0:00:13]}  Qc4 {[%clk 0:01:46]} 40. Bc3 {[%clk 0:00:12]}  Nf4 {[%clk 0:01:45]} 41. Qb2 {[%clk 0:00:04]}  Nd3 {[%clk 0:01:40]} 42. Qd2 {[%clk 0:00:04]}  a3 {[%clk 0:01:36]} 43. g3 {[%clk 0:00:04]}  a2 {[%clk 0:01:32]} 44. gxh4 {[%clk 0:00:02]}  Nxb4 {[%clk 0:01:31]} 45. Qb2 {[%clk 0:00:02]}  Nd3 {[%clk 0:01:29]} 46. Qd2 {[%clk 0:00:01]}  b4 {[%clk 0:01:29]} 47. Ba1 {[%clk 0:00:01]}  b3 {[%clk 0:01:24]} 48. Qa5 {[%clk 0:00:01]}  Qc1 {[%clk 0:01:15]} 49. Qd8+ {[%clk 0:00:02]}  Kh7 {[%clk 0:01:12]} 50. Qe7 {[%clk 0:00:02]}  Qf4+ {[%clk 0:01:12]} 51. Kg2 {[%clk 0:00:02]}  Qxf2+ {[%clk 0:01:12]} 52. Kh1 {[%clk 0:00:02]}  Qf1+ {[%clk 0:01:09]} 53. Kh2 {[%clk 0:00:02]}  Qxa1 {[%clk 0:01:08]} 54. Qxf7 {[%clk 0:00:02]}  Qb2+ {[%clk 0:01:05]} 55. Kg3 {[%clk 0:00:02]}  Qf2+ {[%clk 0:01:04]} 56. Kg4 {[%clk 0:00:02]}  Qf5+ {[%clk 0:01:03]} 57. Kg3 {[%clk 0:00:02]}  Qg6+ {[%clk 0:01:02]} 58. Kh2 {[%clk 0:00:01]}  Qxf7 {[%clk 0:01:02]} 59. h5 {[%clk 0:00:02]}  b2 {[%clk 0:01:01]} 60. h6 {[%clk 0:00:03]}  g5 {[%clk 0:01:00]} 61. h4 {[%clk 0:00:03]}  Qf4+ {[%clk 0:00:59]} 62. Kg2 {[%clk 0:00:03]}  b1=Q {[%clk 0:00:54]} 63. h5 {[%clk 0:00:04]}  Kh8 {[%clk 0:00:51]} 64. Kh3 {[%clk 0:00:04]}  a1=Q {[%clk 0:00:51]} 65. Kg2 {[%clk 0:00:05]}  Qc2+ {[%clk 0:00:50]} 66. Kh3 {[%clk 0:00:05]}  Qab1 {[%clk 0:00:45]} 67. h7 {[%clk 0:00:04]}  Qbc1 {[%clk 0:00:45]} 68. h6 {[%clk 0:00:04]}  Qh1# {[%clk 0:00:25]} 0-1


[Site "https://www.chess.com"]

[Event "Titled Tuesday Blitz March 28 Early 2023"]
[White "salgadoLO"]
[Black "Estremera Panos, Sergio"]
[BlackFideId "2200864"]
[WhiteElo "2211"]
[BlackElo "2253"]
[Result "1-0"]
[Round "08"]
[TimeControl "180+2"]
[Date "2023.03.28"]
[WhiteClock "0:00:06"]
[BlackClock "0:00:07"]

1. d4 {[%clk 0:03:00]}  d5 {[%clk 0:02:57]} 2. c4 {[%clk 0:02:58]}  e6 {[%clk 0:02:57]} 3. Nc3 {[%clk 0:02:58]}  Nf6 {[%clk 0:02:57]} 4. cxd5 {[%clk 0:02:57]}  exd5 {[%clk 0:02:58]} 5. Bg5 {[%clk 0:02:57]}  c6 {[%clk 0:02:57]} 6. e3 {[%clk 0:02:57]}  Bd6 {[%clk 0:02:55]} 7. Bd3 {[%clk 0:02:54]}  O-O {[%clk 0:02:55]} 8. Nge2 {[%clk 0:02:49]}  Re8 {[%clk 0:02:54]} 9. Qc2 {[%clk 0:02:47]}  h6 {[%clk 0:02:55]} 10. Bh4 {[%clk 0:02:44]}  a5 {[%clk 0:02:55]} 11. Bg3 {[%clk 0:02:38]}  Na6 {[%clk 0:02:54]} 12. a3 {[%clk 0:02:37]}  Nc7 {[%clk 0:02:54]} 13. O-O {[%clk 0:02:34]}  Ne6 {[%clk 0:02:54]} 14. Rae1 {[%clk 0:02:27]}  Ng5 {[%clk 0:02:53]} 15. Bxd6 {[%clk 0:02:12]}  Qxd6 {[%clk 0:02:53]} 16. Qc1 {[%clk 0:02:08]}  Nfe4 {[%clk 0:02:19]} 17. f3 {[%clk 0:02:04]}  Nf6 {[%clk 0:02:14]} 18. Bc2 {[%clk 0:01:44]}  Bd7 {[%clk 0:02:05]} 19. Qd2 {[%clk 0:01:41]}  Re7 {[%clk 0:02:03]} 20. Ng3 {[%clk 0:01:36]}  Rae8 {[%clk 0:02:02]} 21. e4 {[%clk 0:01:12]}  dxe4 {[%clk 0:02:00]} 22. fxe4 {[%clk 0:01:12]}  Ng4 {[%clk 0:01:36]} 23. e5 {[%clk 0:01:03]}  Rxe5 {[%clk 0:01:25]} 24. Qf4 {[%clk 0:00:53]}  R5e6 {[%clk 0:00:52]} 25. Rxe6 {[%clk 0:00:27]}  Rxe6 {[%clk 0:00:33]} 26. Qxg4 {[%clk 0:00:21]}  Re1 {[%clk 0:00:20]} 27. Qh4 {[%clk 0:00:14]}  Rxf1+ {[%clk 0:00:19]} 28. Nxf1 {[%clk 0:00:12]}  Qe7 {[%clk 0:00:18]} 29. Qf2 {[%clk 0:00:10]}  Be6 {[%clk 0:00:17]} 30. h3 {[%clk 0:00:09]}  b6 {[%clk 0:00:13]} 31. Qe3 {[%clk 0:00:09]}  Qf6 {[%clk 0:00:12]} 32. Nd2 {[%clk 0:00:07]}  Bf5 {[%clk 0:00:11]} 33. Bxf5 {[%clk 0:00:06]}  Qxf5 {[%clk 0:00:12]} 34. Nde4 {[%clk 0:00:05]}  g6 {[%clk 0:00:11]} 35. Nxg5 {[%clk 0:00:05]}  hxg5 {[%clk 0:00:11]} 36. Qe5 {[%clk 0:00:05]}  Qd3 {[%clk 0:00:10]} 37. Kh2 {[%clk 0:00:05]}  Qd2 {[%clk 0:00:10]} 38. Ne4 {[%clk 0:00:06]}  Qxb2 {[%clk 0:00:10]} 39. Nf6+ {[%clk 0:00:06]}  Kf8 {[%clk 0:00:11]} 40. Nd7+ {[%clk 0:00:05]}  Kg8 {[%clk 0:00:11]} 41. Nf6+ {[%clk 0:00:05]}  Kf8 {[%clk 0:00:11]} 42. Ne4 {[%clk 0:00:05]}  Qxa3 {[%clk 0:00:09]} 43. Nxg5 {[%clk 0:00:06]}  b5 {[%clk 0:00:07]} 44. Qf6 {[%clk 0:00:06]}  Qe7 {[%clk 0:00:07]} 45. Qh8# {[%clk 0:00:06]} 1-0


[Site "https://www.chess.com"]

[Event "Titled Tuesday Blitz March 28 Early 2023"]
[White "Gronnestad, Anita"]
[Black "Fabris, Alberto"]
[WhiteFideId "1502972"]
[BlackFideId "801348"]
[WhiteElo "1939"]
[BlackElo "2201"]
[Result "0-1"]
[Round "08"]
[TimeControl "180+2"]
[Date "2023.03.28"]
[WhiteClock "0:00:01"]
[BlackClock "0:00:22"]

1. d4 {[%clk 0:02:58]}  Nf6 {[%clk 0:02:59]} 2. c4 {[%clk 0:02:58]}  e6 {[%clk 0:03:00]} 3. Nf3 {[%clk 0:02:58]}  d5 {[%clk 0:02:59]} 4. Nc3 {[%clk 0:02:58]}  c6 {[%clk 0:02:59]} 5. Bg5 {[%clk 0:02:58]}  Nbd7 {[%clk 0:02:59]} 6. e3 {[%clk 0:02:58]}  Be7 {[%clk 0:02:58]} 7. Qc2 {[%clk 0:02:58]}  O-O {[%clk 0:02:57]} 8. Rd1 {[%clk 0:02:59]}  b6 {[%clk 0:02:52]} 9. a3 {[%clk 0:02:59]}  Bb7 {[%clk 0:02:52]} 10. b4 {[%clk 0:02:55]}  h6 {[%clk 0:02:49]} 11. Bh4 {[%clk 0:02:54]}  c5 {[%clk 0:02:45]} 12. dxc5 {[%clk 0:02:53]}  bxc5 {[%clk 0:02:45]} 13. bxc5 {[%clk 0:02:22]}  Nxc5 {[%clk 0:02:43]} 14. Be2 {[%clk 0:02:15]}  Rc8 {[%clk 0:02:41]} 15. O-O {[%clk 0:02:14]}  Nce4 {[%clk 0:02:35]} 16. Qb2 {[%clk 0:01:50]}  Nxc3 {[%clk 0:02:19]} 17. Qxc3 {[%clk 0:01:51]}  Qc7 {[%clk 0:02:10]} 18. Qb3 {[%clk 0:01:18]}  dxc4 {[%clk 0:02:01]} 19. Qa2 {[%clk 0:01:15]}  Bd5 {[%clk 0:01:57]} 20. Bg3 {[%clk 0:01:14]}  Qa5 {[%clk 0:01:55]} 21. a4 {[%clk 0:01:12]}  c3 {[%clk 0:01:51]} 22. Qc2 {[%clk 0:01:12]}  Be4 {[%clk 0:01:44]} 23. Bd3 {[%clk 0:01:11]}  Bxd3 {[%clk 0:01:35]} 24. Rxd3 {[%clk 0:01:11]}  Bb4 {[%clk 0:01:35]} 25. Nd4 {[%clk 0:01:11]}  Ne4 {[%clk 0:01:23]} 26. Rb1 {[%clk 0:01:08]}  Nd2 {[%clk 0:01:17]} 27. Ra1 {[%clk 0:01:06]}  e5 {[%clk 0:01:10]} 28. Nf5 {[%clk 0:01:05]}  Rfd8 {[%clk 0:00:57]} 29. Rxd8+ {[%clk 0:00:18]}  Rxd8 {[%clk 0:00:56]} 30. Rd1 {[%clk 0:00:14]}  Qc5 {[%clk 0:00:54]} 31. e4 {[%clk 0:00:11]}  a5 {[%clk 0:00:53]} 32. Ne3 {[%clk 0:00:12]}  Qd4 {[%clk 0:00:45]} 33. Nd5 {[%clk 0:00:11]}  f5 {[%clk 0:00:41]} 34. h3 {[%clk 0:00:06]}  fxe4 {[%clk 0:00:39]} 35. Kh2 {[%clk 0:00:06]}  Qxd5 {[%clk 0:00:38]} 36. Re1 {[%clk 0:00:03]}  Qd3 {[%clk 0:00:38]} 37. Qc1 {[%clk 0:00:02]}  c2 {[%clk 0:00:34]} 38. Re3 {[%clk 0:00:03]}  Qc4 {[%clk 0:00:31]} 39. Bxe5 {[%clk 0:00:02]}  Nb3 {[%clk 0:00:29]} 40. Rxb3 {[%clk 0:00:02]}  Qxb3 {[%clk 0:00:29]} 41. Qf4 {[%clk 0:00:02]}  Qf7 {[%clk 0:00:27]} 42. Qg4 {[%clk 0:00:02]}  c1=Q {[%clk 0:00:26]} 43. Bf4 {[%clk 0:00:02]}  Qcc4 {[%clk 0:00:24]} 44. h4 {[%clk 0:00:01]}  Qce6 {[%clk 0:00:23]} 45. Qg3 {[%clk 0:00:01]}  Bd6 {[%clk 0:00:22]} 46. Bxd6 {[%clk 0:00:01]}  Qxd6 {[%clk 0:00:22]} 0-1


[Site "https://www.chess.com"]

[Event "Titled Tuesday Blitz March 28 Early 2023"]
[White "Levitan, Caleb Levi"]
[Black "Kornyukov, Alexey"]
[WhiteFideId "14332620"]
[BlackFideId "4150457"]
[WhiteElo "1963"]
[BlackElo "2352"]
[Result "1-0"]
[Round "08"]
[TimeControl "180+2"]
[Date "2023.03.28"]
[WhiteClock "0:01:52"]
[BlackClock "0:01:31"]

1. e4 {[%clk 0:02:59]}  c5 {[%clk 0:02:59]} 2. Nf3 {[%clk 0:02:58]}  Nc6 {[%clk 0:02:54]} 3. Nc3 {[%clk 0:02:55]}  e6 {[%clk 0:02:54]} 4. d4 {[%clk 0:02:54]}  cxd4 {[%clk 0:02:54]} 5. Nxd4 {[%clk 0:02:54]}  d5 {[%clk 0:02:54]} 6. exd5 {[%clk 0:02:49]}  exd5 {[%clk 0:02:52]} 7. Be2 {[%clk 0:02:46]}  Nf6 {[%clk 0:02:49]} 8. O-O {[%clk 0:02:46]}  Be7 {[%clk 0:02:46]} 9. Be3 {[%clk 0:02:42]}  O-O {[%clk 0:02:40]} 10. h3 {[%clk 0:02:41]}  Be6 {[%clk 0:02:39]} 11. Qd2 {[%clk 0:02:35]}  Nxd4 {[%clk 0:02:38]} 12. Bxd4 {[%clk 0:02:34]}  Qd7 {[%clk 0:02:35]} 13. Rad1 {[%clk 0:02:32]}  Rfd8 {[%clk 0:02:28]} 14. Bf3 {[%clk 0:02:25]}  Rac8 {[%clk 0:02:06]} 15. Bxa7 {[%clk 0:02:10]}  Bb4 {[%clk 0:01:57]} 16. Bd4 {[%clk 0:02:05]}  Ne4 {[%clk 0:01:55]} 17. Bxe4 {[%clk 0:01:57]}  dxe4 {[%clk 0:01:53]} 18. Qg5 {[%clk 0:01:55]}  f6 {[%clk 0:01:31]} 19. Bxf6 {[%clk 0:01:52]} 1-0


[Site "https://www.chess.com"]

[Event "Titled Tuesday Blitz March 28 Early 2023"]
[White "Zampronha, Wladimir Camilo"]
[Black "Rose, Felix"]
[WhiteFideId "2103087"]
[BlackFideId "5105722"]
[WhiteElo "2176"]
[BlackElo "2039"]
[Result "1-0"]
[Round "08"]
[TimeControl "180+2"]
[Date "2023.03.28"]
[WhiteClock "0:01:36"]
[BlackClock "0:01:07"]

1. e4 {[%clk 0:03:00]}  e5 {[%clk 0:02:59]} 2. Nf3 {[%clk 0:03:01]}  Nc6 {[%clk 0:02:59]} 3. d4 {[%clk 0:03:01]}  exd4 {[%clk 0:02:59]} 4. Nxd4 {[%clk 0:03:02]}  Nf6 {[%clk 0:02:57]} 5. Nxc6 {[%clk 0:03:02]}  bxc6 {[%clk 0:02:57]} 6. e5 {[%clk 0:03:02]}  Qe7 {[%clk 0:02:58]} 7. Qe2 {[%clk 0:03:02]}  Nd5 {[%clk 0:02:58]} 8. c4 {[%clk 0:03:03]}  Ba6 {[%clk 0:02:58]} 9. b3 {[%clk 0:03:03]}  g6 {[%clk 0:02:54]} 10. f4 {[%clk 0:03:02]}  Bg7 {[%clk 0:02:53]} 11. Qf2 {[%clk 0:03:02]}  Nxf4 {[%clk 0:02:42]} 12. Bxf4 {[%clk 0:02:55]}  Bxe5 {[%clk 0:02:41]} 13. Bxe5 {[%clk 0:02:56]}  Qxe5+ {[%clk 0:02:42]} 14. Qe2 {[%clk 0:02:56]}  Qxe2+ {[%clk 0:02:40]} 15. Bxe2 {[%clk 0:02:57]}  O-O {[%clk 0:02:40]} 16. Kf2 {[%clk 0:02:55]}  d5 {[%clk 0:02:39]} 17. Nd2 {[%clk 0:02:42]}  Rfe8 {[%clk 0:02:37]} 18. Rhe1 {[%clk 0:02:41]}  Re6 {[%clk 0:02:28]} 19. Bf3 {[%clk 0:02:39]}  dxc4 {[%clk 0:02:17]} 20. Rxe6 {[%clk 0:02:33]}  fxe6 {[%clk 0:02:14]} 21. Nxc4 {[%clk 0:02:32]}  Bxc4 {[%clk 0:02:11]} 22. bxc4 {[%clk 0:02:31]}  Rb8 {[%clk 0:02:11]} 23. Re1 {[%clk 0:02:29]}  Rb4 {[%clk 0:02:09]} 24. Rxe6 {[%clk 0:02:24]}  Rxc4 {[%clk 0:02:06]} 25. Rxc6 {[%clk 0:02:22]}  Ra4 {[%clk 0:02:05]} 26. Bd5+ {[%clk 0:02:09]}  Kg7 {[%clk 0:02:04]} 27. Rxc7+ {[%clk 0:02:09]}  Kh6 {[%clk 0:02:05]} 28. Bg8 {[%clk 0:02:09]}  Kg5 {[%clk 0:02:04]} 29. Rxh7 {[%clk 0:02:07]}  Rf4+ {[%clk 0:02:03]} 30. Kg3 {[%clk 0:02:05]}  Rg4+ {[%clk 0:02:01]} 31. Kh3 {[%clk 0:02:02]}  a5 {[%clk 0:01:53]} 32. g3 {[%clk 0:02:02]}  a4 {[%clk 0:01:51]} 33. Ra7 {[%clk 0:02:00]}  Rb4 {[%clk 0:01:42]} 34. Ra5+ {[%clk 0:02:00]}  Kh6 {[%clk 0:01:41]} 35. Bf7 {[%clk 0:02:00]}  Kg7 {[%clk 0:01:38]} 36. Be8 {[%clk 0:01:59]}  Re4 {[%clk 0:01:37]} 37. Bxa4 {[%clk 0:01:58]}  Kh6 {[%clk 0:01:36]} 38. Bc2 {[%clk 0:01:57]}  Re6 {[%clk 0:01:35]} 39. Rc5 {[%clk 0:01:53]}  g5 {[%clk 0:01:34]} 40. a4 {[%clk 0:01:50]}  Kh5 {[%clk 0:01:27]} 41. Bd1+ {[%clk 0:01:45]}  Kh6 {[%clk 0:01:25]} 42. a5 {[%clk 0:01:43]}  Re1 {[%clk 0:01:23]} 43. Bg4 {[%clk 0:01:42]}  Ra1 {[%clk 0:01:21]} 44. Rc6+ {[%clk 0:01:43]}  Kg7 {[%clk 0:01:20]} 45. a6 {[%clk 0:01:43]}  Ra2 {[%clk 0:01:19]} 46. Bc8 {[%clk 0:01:42]}  Ra4 {[%clk 0:01:16]} 47. Bb7 {[%clk 0:01:41]}  g4+ {[%clk 0:01:11]} 48. Kh4 {[%clk 0:01:40]}  Kh7 {[%clk 0:01:10]} 49. Kg5 {[%clk 0:01:38]}  Kg7 {[%clk 0:01:08]} 50. Rc7+ {[%clk 0:01:38]}  Kh8 {[%clk 0:01:07]} 51. Kg6 {[%clk 0:01:36]} 1-0


[Site "https://www.chess.com"]